Cogmind - Beta 11.1 @@@ ROGUE MODE // 2022.06.11 @ 11:16:11 Player: ChromeKnight Result: Destroyed by D-53 Grenadier with Mini Grenade Launcher Performance ------------- Evolutions (0) 0 Regions Visited (2) 400 Robots Destroyed (28) 140 Value Destroyed (752) 752 Prototype IDs (0) 0 Alien Tech Used (0) 0 Bonus (0) 0 TOTAL SCORE: 1292 Bonus ------- None Cogmind --------- Core Integrity 0/250 Matter 300/300 Energy 160/160 System Corruption 0% Temperature Cool (0) Movement Treading (240) Ox1 Location -10/Mines Parts ------- > --- POWER (1) -------- Light Nuclear Core > --- PROPULSION (2) --- Light Treads > --- UTILITY (2) ------ Heat Sink Large Storage Unit > --- WEAPON (2) ------- EM Shotgun > --- INVENTORY (15) --- Weight Redist. System Hacking Suite EM Shotgun EM Shotgun Medium Laser Medium Laser Medium Laser Heavy Assault Rifle Heavy Assault Rifle Heavy Assault Rifle Heavy Assault Rifle Grenade Launcher Grenade Launcher Datajack Datajack Peak State ------------ > --- POWER ------------ Light Nuclear Core > --- PROPULSION ------- Light Treads Light Treads > --- UTILITY ---------- Heat Sink Large Storage Unit > --- WEAPON ----------- EM Shotgun EM Shotgun > --- INVENTORY -------- Weight Redist. System Hacking Suite EM Shotgun EM Shotgun Medium Laser Medium Laser Medium Laser Heavy Assault Rifle Heavy Assault Rifle Heavy Assault Rifle Heavy Assault Rifle Grenade Launcher Grenade Launcher Datajack Datajack [Rating: 13] Favorites ----------- Power Ion Engine Engine Ion Engine Power Core Light Nuclear Core Propulsion Light Treads Treads Light Treads Utility Heat Sink Device Heat Sink Storage Large Storage Unit Weapon EM Shotgun Energy Gun EM Shotgun Ballistic Gun Assault Rifle Build | -11 -10 -10 ------- Run | Scr Mat Min Slots Evolved . | . . . Power . | . . . Propulsion . | . . . Utility . | . . . Weapon . | . . . Parts Attached 20 | 6 12 2 Power 5 | 1 3 1 Engine 4 | 1 3 . Core 1 | . . 1 Reactor . | . . . Propulsion 4 | 2 2 . Treads 4 | 2 2 . Leg . | . . . Wheel . | . . . Hover . | . . . Flight . | . . . Utility 4 | 1 2 1 Device 2 | . 1 1 Storage 2 | 1 1 . Processor . | . . . Hackware . | . . . Protection . | . . . Artifact . | . . . Weapon 7 | 2 5 . Energy Gun 5 | . 5 . Energy Cannon . | . . . Ballistic Gun 2 | 2 . . Ballistic Cannon . | . . . Launcher . | . . . Special Weapon . | . . . Impact Weapon . | . . . Slashing Weapon . | . . . Piercing Weapon . | . . . Special Melee Weapon . | . . . Unidentified Prototypes . | . . . Parts Lost 4 | . 1 3 Power . | . . . Propulsion 2 | . 1 1 Utility 1 | . . 1 Weapon 1 | . . 1 Highest Loss Streak 1 | . 1 1 To Critical Strikes . | . . . Average Slot Usage (%) 96 | . 97 93 Engine 11 | . 14 4 Core 2 | . . 10 Treads 27 | . 27 28 Device 12 | . 12 13 Storage 14 | . 14 14 Energy Gun 21 | . 20 22 Ballistic Gun 5 | . 7 . Naked Turns . | . . . Heaviest Build 32 | 12 32 32 Greatest Support 40 | 40 40 40 Greatest Overweight (x) 1 | . 1 . Average Overweight (x) . | . . . Largest Inventory Capacity 15 | 8 15 15 Average Capacity 13 | 6 12 15 Most Carried 15 | 1 15 15 Average Carried 11 | . 10 15 Final Capacity 15 | 8 15 15 Final Carried 15 | 1 15 15 Class Distribution -------------------- 100% | Mutant Dominant Class ---------------- Mutant | -10/Materials Mutant | -10/Mines Resources | -11 -10 -10 ----------- Run | Scr Mat Min Matter Collected 553 | 266 267 20 Remotely . | . . . Salvage Created 1110 | 91 802 217 Parts 56 | 1 43 12 Haulers Intercepted 2 | . 2 . Recyclers Shooed . | . . . Parts Field Recycled . | . . . Retrieved Matter . | . . . Parts Self-Destructed . | . . . Prevented . | . . . Kills | -11 -10 -10 ------- Run | Scr Mat Min Combat Hostiles Destroyed 17 | . 12 5 Guns 16 | . 11 5 Classes Destroyed 8 | 1 6 1 Worker 3 | . 2 1 Hauler 2 | . 2 . Recycler 1 | 1 . . Mechanic 1 | . 1 . Operator 2 | . 2 . Watcher 2 | . 2 . Grunt 16 | . 12 4 Demolisher 1 | . . 1 Best Kill Streak 4 | 1 4 2 Combat Bots Only 2 | . 2 2 Max Kills in Single Turn 2 | 1 2 1 Gunslinging . | . . . Exploded . | . . . Melee . | . . . Uniques/NPCs Destroyed . | . . . Combat | -11 -10 -10 -------- Run | Scr Mat Min Damage Taken 1147 | . 813 334 Core 257 | . 143 114 Absorbed by Shields . | . . . Core Remaining (%) 100 | 100 . . Volleys Fired 74 | 1 62 11 Largest 2 | 2 2 2 Hottest 100 | 40 100 90 Shots Fired 146 | 2 124 20 Gun 146 | 2 124 20 Cannon . | . . . Launcher . | . . . Special . | . . . Kinetic 51 | 2 49 . Thermal 65 | . 65 . Explosive . | . . . Electromagnetic 30 | . 10 20 Robot Hit Streak 12 | 1 11 12 Robot Miss Streak 3 | . 3 2 Penetration Max . | . . . Secondary Targets 1 | . . 1 Max Gunslinging Chain 1 | . . 1 Shots Hit Robots 98 | 1 80 17 Core Hits 53 | 1 38 14 Critical Kills . | . . . Critical Parts Destroyed 1 | . 1 . Critical Strikes 3 | . 3 . Burn 2 | . 2 . Destroy 1 | . 1 . Melee Attacks . | . . . Impact . | . . . Slashing . | . . . Piercing . | . . . Sneak Attacks . | . . . Combat Hostiles . | . . . Follow-up Attacks . | . . . Damage Inflicted 1322 | 15 1046 261 Guns 1294 | 15 1046 233 Cannons . | . . . Explosions 28 | . . 28 Melee . | . . . Ramming . | . . . Kinetic 476 | 15 461 . Thermal 493 | . 465 28 Explosive . | . . . Electromagnetic 353 | . 120 233 Impact . | . . . Slashing . | . . . Piercing . | . . . Highest Corruption . | . . . Average Corruption . | . . . Corruption Purged . | . . . Corruption Blocked . | . . . Overload Shots . | . . . Overflow Damage 4 | . . 4 Projectiles . | . . . Explosions 4 | . . 4 Melee . | . . . Knockbacks . | . . . Impact . | . . . Kinetic . | . . . Secondary . | . . . Self-Inflicted Damage 32 | . . 32 Shots 1 | . . 1 Rammed . | . . . Targets Rammed . | . . . Kicked . | . . . Crushed . | . . . Highest Temperature 162 | . 152 162 Average Temperature 55 | . 55 56 Received Heat Transfer 561 | . 459 102 Siege Activations . | . . . Robots Corrupted . | . . . Combat Hostiles . | . . . Parts Fried 2 | . . 2 Impact Corruptions . | . . . Robots Melted 1 | . 1 . Combat Hostiles 1 | . 1 . Parts Melted 5 | . 5 . Heat Transferred 1517 | . 1517 . Parts Sabotaged . | . . . Parts Stolen . | . . . Parts Stripped . | . . . Power Chain Reactions 1 | . . 1 Missiles Intercepted . | . . . Alert | -11 -10 -10 ------- Run | Scr Mat Min Peak Influence 193 | 5 193 156 Initial 53 | . 3 53 Average 99 | 2 104 102 Maximum Alert Level . | . . . Low Security (%) 100 | 100 100 100 Level 1 . | . . . Level 2 . | . . . Level 3 . | . . . Level 4 . | . . . Level 5 . | . . . High Security . | . . . Max Security . | . . . Squads Dispatched 2 | . 2 . Investigation . | . . . Extermination . | . . . Reinforcement 2 | . 2 . Assault . | . . . Garrison . | . . . Intercept . | . . . Searches Triggered . | . . . Construction Impeded . | . . . Haulers Reinforced . | . . . Active Scanning Responses . | . . . Cargo Convoy Interrupts . | . . . Stealth | -11 -10 -10 --------- Run | Scr Mat Min Distress Signals 2 | . 1 1 Communications Jammed . | . . . Distress Signals . | . . . Times Spotted 25 | . 19 6 Peak Tracking Total 3 | . 3 2 Tactical Retreats 2 | . 2 . Traps | -11 -10 -10 ------- Run | Scr Mat Min Traps Triggered . | . . . Indirectly . | . . . Trap Hack Attempts . | . . . Triggered . | . . . Disarmed . | . . . Reprogrammed . | . . . Reused . | . . . Traps Extracted . | . . . Installed . | . . . Triggered . | . . . Machines | -11 -10 -10 ---------- Run | Scr Mat Min Machines Disabled . | . . . Max in Single Turn . | . . . Machines Sabotaged . | . . . Garrisons Compromised . | . . . Overloaded Fab Kills . | . . . Hacking | -11 -10 -10 --------- Run | Scr Mat Min Machines Accessed 4 | . 4 . Terminals 4 | . 4 . Fabricators . | . . . Repair Stations . | . . . Recycling Units . | . . . Scanalyzers . | . . . Garrison Access . | . . . Total Hacks 8 | . 8 . Successful 5 | . 5 . Failed 3 | . 3 . Catastrophic . | . . . Database Lockouts . | . . . Manual 8 | . 8 . Terminals 8 | . 8 . Fabricators . | . . . Repair Stations . | . . . Recycling Units . | . . . Scanalyzers . | . . . Garrison Access . | . . . Terminal Hacks . | . . . Fabricator Hacks . | . . . Repair Station Hacks . | . . . Recycling Unit Hacks . | . . . Scanalyzer . | . . . Garrison Access Hacks . | . . . Unauthorized Hacks 5 | . 5 . Terminals 5 | . 5 . Botnet 4 | . 4 . Operators 1 | . 1 . Fabricators . | . . . Repair Stations . | . . . Recycling Units . | . . . Scanalyzers . | . . . Garrison Access . | . . . Data Cores Recovered . | . . . Used . | . . . Hacking Detections 2 | . 2 . Full Trace Events . | . . . Feedback Events . | . . . Feedback Blocked . | . . . Robot Schematics Acquired . | . . . Robots Built . | . . . Authchips . | . . . Time . | . . . Total Robot Build Rating . | . . . Part Schematics Acquired . | . . . Parts Built . | . . . Authchips . | . . . Time . | . . . Total Part Build Rating . | . . . Parts Repaired . | . . . Time . | . . . Parts Recycled . | . . . Recycled Matter . | . . . Retrieved Matter . | . . . Retrieved Components . | . . . Parts Scanalyzed . | . . . Part Schematics Acquired . | . . . Parts Damaged . | . . . Bothacking | -11 -10 -10 ------------ Run | Scr Mat Min Used RIF Installer . | . . . Robots Hacked . | . . . Non-combat . | . . . Combat . | . . . Robot Hacks Applied . | . . . Relay Couplers Released . | . . . Fabnet Peak Effective % . | . . . Robots Rewired . | . . . Allies Hacked . | . . . Hacks Repelled . | . . . Allies | -11 -10 -10 -------- Run | Scr Mat Min Total Allies . | . . . Largest Group . | . . . Highest-Rated Group . | . . . Highest-Rated Ally . | . . . Total Orders . | . . . Ally Attacks . | . . . Total Damage . | . . . Kills . | . . . Allies Corrupted . | . . . Allies Melted . | . . . Intel | -11 -10 -10 ------- Run | Scr Mat Min Robot Analysis Total . | . . . Derelict Logs Recovered 1 | . . 1 Drone Launches . | . . . Drone Recoveries . | . . . Exploration | -11 -10 -10 ------------- Run | Scr Mat Min Turns Passed 1757 | 77 1188 492 Spaces Moved 865 | 44 537 284 Core 5 | 5 . . Treads 860 | 39 537 284 Legs . | . . . Wheels . | . . . Hover . | . . . Flight . | . . . Fastest Speed 50 | 50 160 160 Average Speed 159 | 147 160 160 Slowest Speed 240 | 160 240 160 Overloaded Moves . | . . . Propulsion Burnouts . | . . . Robots Hopped . | . . . Cave-ins Triggered . | . . . Exploration Rate (%) 42 | 5 66 55 Regions Visited 2 Branch Regions 1 Pre-discovered Areas 2 | . . 2 Known Exits Taken . | . . . Unknown Exits Taken 2 | 1 1 . Scrap Searched 1 | . . 1 Spaces Dug . | . . . Terrain Destroyed 6 | . . 6 Melee . | . . . Projectile . | . . . AOE 6 | . . 6 Terrain Rammed . | . . . Walls Destroyed . | . . . Machines Disabled . | . . . Actions | -11 -10 -10 --------- Run | Scr Mat Min Total 1093 | 51 741 301 Wait 101 | . 98 3 Move 863 | 43 536 284 Hop . | . . . Pick Up 20 | 1 19 . Fast Attach 15 | 6 7 2 Attach . | . . . Detach . | . . . Swap 5 | . 5 . Drop 15 | . 14 1 Fire 74 | 1 62 11 Melee . | . . . Ram . | . . . Kick . | . . . Crush . | . . . Escape Stasis . | . . . Rewire . | . . . Trap . | . . . Miscellaneous . | . . . Route ------- -11/Scrapyard -10/Materials (discovered 2 exits: [*Mat] / [*Min]) -10/Mines History --------- Turn | Location | Event 4 | -11/Scrapyard | Discovered new exit (range 16) 78 | -11/Scrapyard | Entered Materials 305 | -10/Materials | Build established: Mutant 657 | -10/Materials | Discovered new exit (range 16) 727 | -10/Materials | Core integrity fell below 50% 839 | -10/Materials | Discovered new exit (range 14) 1266 | -10/Materials | Entered Mines 1267 | -10/Mines | Learned location of Storage (-9) 1315 | -10/Mines | Assembled infested the area 1425 | -10/Mines | Learned location of Recycling (-9) 1754 | -10/Mines | Core integrity fell below 20% 1758 | -10/Mines | Destroyed by D-53 Grenadier with Mini Grenade Launcher Last Messages --------------- 01320_ Acquired 10 matter. 01367_ K-01 Serf collects debris. 01397_ G-47 Trooper destroyed. 01397_ Switching to secondary target: G-34 Mercenary. 01403_ Ion Engine fried. 01403_ Heat Sink fried. 01403_ G-34 Mercenary destroyed. 01409_ Dropped Ion Engine. 01409_ Acquired Lgt. Nuclear Core. 01411_ Acquired 10 matter. 01425_ Acquired derelict log, extracted data. World map updated: -9/Recycling. 01576_ Chain reaction triggered in Lgt. Ion Engine. 01576_ K-01 Serf destroyed. 01576_ EM Shotgun destroyed. 01576_ Destroyed EM Shotgun. 01582_ K-01 Serf collects debris. 01753_ Lgt. Treads destroyed. 01756_ D-53 Grenadier destroyed. 01758_ K-01 Serf collects debris. Map ----- +----------------------------------------------------+ | ?????????## ##?#""" #????????????? | | ????????## #?#""" #????????????? | | ????????# #?#""" #????????????? | | ???????## ### #????????????? | | ??????## #????????????? | | ?????## #????????????? | | ????## ### #????????????? | | ????# ##?########????????????? | | ????# ######??????????????????????? | | ????# ##???????????????????????????? | | ????## ##???????????????????????????? | | ?????## #???????????????????????????? | | ??????## ##??####????????????????????? | | ???????## #### ##???????????????????? | | ????????# ## ######??????????????? | | ????????## #??????????????? | | ??#####??## #### #??????????????? | | ??# #???#### ## #??????????????? | | ??# ##????## ## # #??????????????? | | ??# ###??# #####??????????????? | | ??# ##?# #??????????????????? | | ??# ### #######??????????????????? | | ??# ## #???????????????????? | | ??# #???????????????????? | | ??## ##??????????????????? | | ???## ### @ ##?????????????????? | | ????#####?## d =##?????????????????? | | ???????????## %##?????????????????? | | ????????????# k=##?????????????????? | | ????????????# ### ##?????????????????? | | ???????????? #?# #??????###?????????? | | ??????????? ##?# #????? ##????????? | | ??????????## ###??# #???? #????????? | | ???????????###?????# #??? #????????? | | ???????????????????# #?# #?????????? | | ?????????????????### ## #??????????? | | ????????????????## #???????????? | | ?????????######## ##???????????? | | ?????????# ### ##????????????? | | ?????????# #### #??# #?????????????? | | ???????? #?# ##??# #?????????????? | | ???????## #### #???# #?????####????? | | ????????##?## ##???# #????## ##???? | | ??????????## ##????# #???## ##??? | | ???????#### ##?????# ##?## #??? | | ???????# #?????## ### #??? | | ???????# ## #??#### ## #### | | ???????# ### #?## #?# | | ???????# #?## ##?# #??# | | ???????# #??###??# ##?# # | +----------------------------------------------------+ Best States ------------- Heat Dissipation 35 Energy Generation 14 Energy Capacity 250 Matter Stores 300 Matter Capacity 300 Sight Range 16 Terrain Scan Density 10 Evasion (%) 40 Recoil Reduction 2 Item Schematics ----------------- None Robot Schematics ------------------ None Fabricated ------------ Nothing Alien Tech Used ----------------- None Achievements -------------- None Challenges ------------ None Game ------ Seed MiniRemoteSource Manual? 0 Play Time 00:07:47 Cumulative 320.4 hours Start 2022.06.11 @ 11:09:32 End 2022.06.11 @ 11:16:11 Sessions 1 Manual Loads 0 Difficulty Rogue Special Mode None Game No. 562 Rogue 407 Adventurer 148 Explorer 7 Win Type - Total 11 Types 9/0/1/1/0/0/0/0/0 Lore% 74 Gallery% 87 Achievement% 67 Wizard Run 0 Options --------- ASCII 0 Keyboard 0 Movement Numpad Keybinds 0 Fullscreen 1 Font 18/SmallcapsGlow Map View 76x50 Tactical HUD 1 Map Filters NONE Filters NONE Steam 1 RUN: a6e49dab-0bb1-4a47-8922-418b951cb00d